fUSD/lending_fUSD_20260329
["ID","MTS","AMOUNT","RATE_DAILY","PERIOD"]
[419008920,1774745440585,-150.0,0.00012,2]
[419008921,1774745440595,-300.0,0.0001202,2]
[419008922,1774745440604,-1600.579,0.00012021,2]
[419008923,1774745440614,-173.419,0.00012021,2]
[419008924,1774745440623,-150.0,0.00012021,2]
[419008925,1774745440632,-158.9403,0.00012022,2]
[419008926,1774745440642,-29865.1844,0.00012022,2]
[419008927,1774745440652,-150.0,0.00012022,2]
[419008928,1774745440662,-150.0,0.00012022,2]
[419008929,1774745440672,-9301.3479,0.00012022,2]
[419008930,1774745440682,-2500.0,0.00012022,2]
[419008931,1774745440692,-815.425,0.00012022,2]
[419008932,1774745440702,-4619.96,0.00012022,2]
[419008933,1774745440712,-14099.07,0.00012022,2]
[419008934,1774745440722,-150.99,0.00012022,2]
[419008935,1774745440731,-2115.6,0.00012022,2]
[419008936,1774745440741,-150.99,0.00012022,2]
[419008937,1774745440750,-999.99,0.00012022,2]
[419008938,1774745440759,-9999.99,0.00012022,2]
[419008939,1774745440769,-4326.57463215,0.00012022,2]
[419008940,1774745440778,-423.6032981,0.00012022,2]
[419008941,1774745440787,-1219.4477189,0.00012022,2]
[419008942,1774745440797,-326.80387008,0.00012022,2]
[419008943,1774745440808,-8124.16062254,0.00012022,2]
[419008944,1774745440818,-500.0,0.00012073,2]
[419008945,1774745440827,-500.0,0.00012073,2]
[419008947,1774745440836,-500.0,0.00012115,2]
[419008949,1774745440845,-200.0,0.00012115,2]
[419008951,1774745440855,-500.0,0.00012115,2]
[419008953,1774745440864,-151.0,0.00012115,2]
[419008955,1774745440874,-151.0,0.00012115,2]
[419008957,1774745440884,-151.0,0.00012115,2]
[419008959,1774745440894,-500.0,0.00012115,2]
[419008961,1774745440904,-151.0,0.00012115,2]
[419008963,1774745440913,-151.0,0.00012115,2]
[419008965,1774745440922,-151.0,0.00012115,2]
[419008966,1774745440932,-151.0,0.00012115,2]
[419008967,1774745440941,-151.0,0.00012115,2]
[419008968,1774745440950,-151.0,0.00012115,2]
[419008969,1774745440960,-151.0,0.00012115,2]
[419008970,1774745440970,-500.0,0.00012115,2]
[419008971,1774745440979,-151.0,0.00012115,2]
[419008972,1774745440989,-500.0,0.00012115,2]
[419008973,1774745441000,-500.0,0.00012115,2]
[419008974,1774745441010,-500.0,0.00012115,2]
[419008975,1774745441020,-500.0,0.00012115,2]
[419008976,1774745441029,-500.0,0.00012115,2]
[419008977,1774745441039,-500.0,0.00012115,2]
[419008978,1774745441049,-500.0,0.00012115,2]
[419008979,1774745441059,-500.0,0.00012115,2]
[419008980,1774745441069,-496.53375348,0.00012115,2]
[419008981,1774745441078,-500.0,0.00012115,2]
[419008982,1774745441088,-500.0,0.00012115,2]
[419008983,1774745441097,-500.0,0.00012115,2]
[419008984,1774745441107,-562.81379167,0.00012115,2]
[419008985,1774745441116,-1289.58892491,0.00012115,2]
[419008986,1774745441126,-649.84,0.00012115,2]
[419008987,1774745441136,-151.0,0.00012119,2]
[419008988,1774745441146,-151.0,0.00012119,2]
[419008989,1774745441155,-1000.0,0.00012122,2]
[419008990,1774745441165,-1883.0,0.00012126,2]
[419008991,1774745441174,-232.0,0.00012126,2]
[419008992,1774745441184,-166.66,0.00012141,2]
[419008993,1774745441194,-276.0,0.0001215,2]
[419008994,1774745441203,-348.08,0.00012164,2]
[419008995,1774745441213,-500.0,0.00012173,2]
[419008996,1774745441222,-500.0,0.00012173,2]
[419008997,1774745441232,-420.0,0.00012237,2]
[419008998,1774745441242,-5000.0,0.00012251,2]
[419008999,1774745441251,-193.0,0.00012251,2]
[419009000,1774745441261,-250.0,0.00012251,2]
[419009001,1774745441270,-1680.0,0.00012251,2]
[419009002,1774745441280,-320.25732237,0.00012252,2]
[419009003,1774745441290,-250.0,0.00012252,2]
[419009004,1774745441300,-151.0,0.00012258,2]
[419009005,1774745441310,-151.0,0.00012266,2]
[419009006,1774745441319,-697.11500021,0.00012275,2]
[419009007,1774745441328,-166.66,0.00012377,2]
[419009008,1774745441338,-649.84,0.00012388,2]
[419009009,1774745441347,-500.0,0.00012388,2]
[419009010,1774745441357,-4326.57463207,0.00012453,2]
[419009011,1774745441366,-423.6032981,0.00012471,2]
[419009012,1774745441376,-500.0,0.00012473,2]
[419009013,1774745441385,-500.0,0.00012473,2]
[419009014,1774745441395,-500.0,0.00012473,2]
[419009015,1774745441405,-624.88629479,0.00012473,2]
[419009016,1774745441416,-1000.0,0.00012521,2]
[419009017,1774745441425,-1000.0,0.00012521,2]
[419009018,1774745441435,-1000.0,0.00012521,2]
[419009019,1774745441446,-423.6032981,0.00012576,2]
[419009020,1774745441455,-1000.0,0.00012621,2]
[419009021,1774745441465,-1000.0,0.00012621,2]
[419009022,1774745441474,-649.84,0.00012662,2]
[419009023,1774745441483,-500.0,0.00012662,2]
[419009024,1774745441493,-207.75293604,0.00012663,2]
[419009025,1774745441503,-1000.0,0.00012721,2]
[419009026,1774745441512,-547.78945051,0.00012721,2]
[419009027,1774745441522,-697.11500021,0.00012728,2]
[419009028,1774745441533,-4326.57463207,0.00012884,2]
[419009029,1774745441542,-649.84,0.00012936,2]
[419009030,1774745441552,-500.0,0.00012936,2]
[419009031,1774745441561,-500.0,0.00013021,2]
[419009032,1774745441571,-1046.25965825,0.00013021,2]
[419009033,1774745441580,-196.23259882,0.00013021,2]
[419009034,1774745441589,-423.6032981,0.00013043,2]
[419009035,1774745441599,-207.03,0.00013047,2]
[419009036,1774745441609,-1500.0,0.00013068,2]
[419009037,1774745441618,-1500.0,0.00013068,2]
[419009038,1774745441627,-500.0,0.00013068,2]
[419009039,1774745441637,-255.0,0.00013103,2]
[419009040,1774745441647,-166.66,0.00013113,2]
[419009041,1774745441656,-423.6032981,0.0001313,2]
[419009042,1774745441666,-802.02,0.00013142,2]
[419009043,1774745441675,-1500.0,0.00013168,2]
[419009044,1774745441685,-1500.0,0.00013168,2]
[419009045,1774745441694,-697.11500021,0.00013181,2]
[419009046,1774745441704,-649.84,0.0001321,2]
[419009047,1774745441714,-415.24917293,0.0001321,2]
[419009048,1774745441724,-1001.78785805,0.00013268,2]
[419009049,1774745441733,-4326.57463207,0.00013315,2]
[419009050,1774745441742,-2351.0,0.00013476,2]
[419009051,1774745441752,-649.84,0.00013484,2]
[419009052,1774745441761,-166.66,0.00013545,2]
[419009053,1774745441770,-2000.0,0.00013616,2]
[419009054,1774745441780,-2000.0,0.00013616,2]
[419009055,1774745441790,-697.11500021,0.00013634,2]
[419009056,1774745441800,-423.6032981,0.00013684,2]
[419009057,1774745441809,-500.0,0.00013698,2]
[419009058,1774745441819,-500.0,0.00013698,2]
[419009059,1774745441828,-500.0,0.00013698,2]
[419009060,1774745441838,-500.0,0.00013698,2]
[419009061,1774745441847,-500.0,0.00013698,2]
[419009062,1774745441857,-500.0,0.00013698,2]
[419009063,1774745441867,-500.0,0.00013698,2]
[419009064,1774745441877,-500.0,0.00013698,2]
[419009065,1774745441886,-500.0,0.00013698,2]
[419009066,1774745441896,-458.87313864,0.00013698,2]
[419009067,1774745441905,-500.0,0.00013698,2]
[419009068,1774745441916,-500.0,0.00013698,2]
[419009069,1774745441925,-313.06,0.00013698,2]
[419009070,1774745441935,-500.0,0.00013698,2]
[419009071,1774745441945,-500.0,0.00013698,2]
[419009072,1774745441955,-500.0,0.00013698,2]
[419009073,1774745441964,-401.01,0.00013698,2]
[419009074,1774745441974,-500.0,0.00013698,2]
[419009075,1774745441983,-504.81663731,0.00013698,2]
[419009076,1774745441993,-500.0,0.00013698,2]
[419009077,1774745442002,-500.0,0.00013698,2]
[419009078,1774745442012,-502.67292552,0.00013698,2]
[419009079,1774745442022,-500.0,0.00013698,2]
[419009080,1774745442032,-500.0,0.00013698,2]
[419009081,1774745442042,-500.0,0.00013698,2]
[419009082,1774745442052,-500.0,0.00013698,2]
[419009083,1774745442062,-500.0,0.00013698,2]
[419009084,1774745442073,-500.0,0.00013698,2]
[419009085,1774745442084,-500.0,0.00013698,2]
[419009086,1774745442095,-500.0,0.00013698,2]
[419009087,1774745442104,-500.0,0.00013698,2]
[419009088,1774745442114,-500.0,0.00013698,2]
[419009089,1774745442124,-500.0,0.00013698,2]
[419009090,1774745442133,-500.0,0.00013698,2]
[419009091,1774745442143,-500.0,0.00013698,2]
[419009092,1774745442152,-500.0,0.00013698,2]
[419009093,1774745442162,-500.0,0.00013698,2]
[419009094,1774745442171,-500.0,0.00013698,2]
[419009095,1774745442181,-500.0,0.00013698,2]
[419009096,1774745442191,-502.58215356,0.00013698,2]
[419009097,1774745442200,-500.0,0.00013698,2]
[419009098,1774745442210,-500.0,0.00013698,2]
[419009099,1774745442219,-500.0,0.00013698,2]
[419009100,1774745442229,-500.0,0.00013698,2]
[419009101,1774745442239,-248.51,0.00013698,2]
[419009102,1774745442249,-500.0,0.00013698,2]
[419009103,1774745442258,-500.0,0.00013698,2]
[419009104,1774745442267,-214.95038261,0.00013698,2]
[419009105,1774745442276,-1324.0,0.00013699,2]
[419009106,1774745442285,-500.0,0.00013699,2]
[419009107,1774745442294,-500.0,0.00013699,2]
[419009108,1774745442304,-500.0,0.00013699,2]
[419009109,1774745442314,-500.0,0.00013699,2]
[419009110,1774745442324,-500.0,0.00013699,2]
[419009111,1774745442334,-500.44276527,0.00013699,2]
[419009112,1774745442344,-500.0,0.00013699,2]
[419009113,1774745442354,-500.41881509,0.00013699,2]
[419009114,1774745442364,-164.60984594,0.00013699,2]
[419009115,1774745442373,-500.53296643,0.00013699,2]
[419009116,1774745442383,-500.0,0.00013699,2]
[419009117,1774745442392,-500.0,0.00013699,2]
[419009118,1774745442402,-500.0,0.00013699,2]
[419009119,1774745442414,-501.05195253,0.00013699,2]
[419009120,1774745442423,-500.0,0.00013699,2]
[419009121,1774745442432,-500.0,0.00013699,2]
[419009122,1774745442441,-500.27278246,0.00013699,2]
[419009123,1774745442450,-500.0,0.00013699,2]
[419009124,1774745442460,-500.31991342,0.00013699,2]
[419009125,1774745442469,-500.0,0.00013699,2]
[419009126,1774745442478,-500.0,0.00013699,2]
[419009127,1774745442487,-210.76090136,0.00013699,2]
[419009128,1774745442497,-500.0,0.00013699,2]
[419009129,1774745442507,-515.20157029,0.00013699,2]
[419009130,1774745442517,-500.0,0.00013699,2]
[419009131,1774745442528,-500.0,0.00013699,2]
[419009132,1774745442538,-500.32204602,0.00013699,2]
[419009133,1774745442548,-518.42009375,0.00013699,2]
[419009134,1774745442558,-160.24397777,0.00013699,2]
[419009135,1774745442568,-500.0,0.00013699,2]
[419009136,1774745442578,-500.0,0.00013699,2]
[419009137,1774745442588,-490.2202769,0.00013699,2]
[419009138,1774745442597,-500.19721306,0.00013699,2]
[419009141,1774745442608,-312.40126688,0.00013699,2]
[419009144,1774745442619,-500.0,0.00013699,2]
[419009145,1774745442629,-162.87051938,0.00013699,2]
[419009147,1774745442639,-168.5281322,0.00013699,2]
[419009149,1774745442648,-500.0,0.00013699,2]
[419009150,1774745442658,-500.23296602,0.00013699,2]
[419009151,1774745442669,-500.0,0.00013699,2]
[419009152,1774745442678,-225.27845209,0.00013699,2]
[419009153,1774745442688,-697.86,0.000137,2]
[419009154,1774745442698,-588.84,0.000137,2]
[419009155,1774745442708,-6691.07,0.000137,2]
[419009156,1774745442718,-1062.42,0.000137,2]
[419009157,1774745442728,-399.48,0.000137,2]
[419009158,1774745442738,-2006.03354913,0.00013716,2]
[419009159,1774745442748,-1140.68316587,0.00013716,2]
[419009160,1774745442757,-178.29807209,0.00013727,2]
[419009161,1774745442766,-500.0,0.00013727,2]
[419009162,1774745442775,-527.08003529,0.00013727,2]
[419009163,1774745442784,-500.0,0.00013727,2]
[419009164,1774745442793,-500.0,0.00013727,2]
[419009165,1774745442803,-500.0,0.00013727,2]
[419009166,1774745442813,-500.0,0.00013727,2]
[419009167,1774745442823,-210.77827455,0.00013727,2]
[419009168,1774745442832,-4326.57463207,0.00013746,2]
[419009169,1774745442842,-649.84,0.00013758,2]
[419009170,1774745442851,-500.0,0.00013775,2]
[419009171,1774745442861,-500.0,0.0001382,2]
[419009172,1774745442870,-1600.0,0.00013837,2]
[419009173,1774745442879,-164.84509951,0.00013861,2]
[419009174,1774745442888,-1219.4477189,0.00013961,2]
[419009175,1774745442897,-326.80387007,0.00013961,2]
[419009176,1774745442906,-8124.16062253,0.00013961,2]
[419009177,1774745442916,-166.66,0.00013978,2]
[419009178,1774745442927,-512.0,0.00014,2]
[419009179,1774745442936,-649.91,0.00014032,2]
[419009180,1774745442946,-151.329,0.000141,2]
[419009181,1774745442955,-1500.0,0.00014164,2]
[419009182,1774745442965,-1500.0,0.00014164,2]
[419009183,1774745443068,-4326.57463207,0.00014176,2]
[419009184,1774745443093,-423.6032981,0.00014238,2]
[419009185,1774745443103,-957.81885159,0.00014247,2]
[419009186,1774745443114,-1000.0,0.00014247,2]
[419009187,1774745443124,-1000.0,0.00014247,2]
[419009188,1774745443134,-1000.0,0.00014247,2]
[419009189,1774745443145,-1000.0,0.00014247,2]
[419009190,1774745443155,-1000.0,0.00014247,2]
[419009191,1774745443165,-500.0,0.00014247,2]
[419009192,1774745443175,-500.0,0.00014247,2]
[419009193,1774745443185,-1000.74890493,0.00014247,2]
[419009194,1774745443195,-548.13868249,0.00014247,2]
[419009195,1774745443205,-804.57451743,0.00014247,2]
[419009196,1774745443215,-1000.0,0.00014275,2]
[419009197,1774745443225,-1000.0,0.00014275,2]
[419009198,1774745443235,-500.0,0.00014275,2]
[419009199,1774745443245,-1000.0,0.00014275,2]
[419009200,1774745443255,-433.0,0.00014281,2]
[419009201,1774745443264,-1000.0,0.00014323,2]
[419009202,1774745443274,-1000.0,0.00014368,2]
[419009203,1774745443284,-1324.0,0.00014384,2]
[419009204,1774745443294,-166.66,0.00014411,2]
[419009205,1774745443304,-356.551796,0.00014499,7]
[419009206,1774745443314,-172.546234,0.00014527,7]
[419009207,1774745443324,-4326.57463207,0.00014607,2]
[419009208,1774745443334,-337.42004485,0.00014642,2]
[419009209,1774745443344,-500.0,0.00014642,2]
[419009210,1774745443353,-163.41739568,0.00014642,2]
[419009211,1774745443363,-500.0,0.00014642,2]
[419009212,1774745443373,-250.0,0.00014717,2]
[419009213,1774745443383,-1500.0,0.00014795,2]
[419009214,1774745443392,-1500.0,0.00014795,2]
[419009215,1774745443402,-830.27435382,0.00014795,2]
[419009216,1774745443411,-1500.0,0.00014795,2]
[419009217,1774745443421,-1500.0,0.00014795,2]
[419009218,1774745443431,-3292.0,0.00014823,2]
[419009219,1774745443441,-1500.0,0.00014823,2]
[419009220,1774745443451,-1500.75630321,0.00014823,2]
[419009221,1774745443461,-1178.52624254,0.00014823,2]
[419009223,1774745443471,-166.66,0.00014844,2]
[419009224,1774745443482,-397.4813256,0.00014871,2]
[419009225,1774745443492,-689.23658373,0.00014916,2]
[419009226,1774745443502,-160.0,0.00014975,2]
[419009227,1774745443512,-959.64475997,0.00014975,2]
[419009228,1774745443522,-160.0,0.00014975,2]
[419009229,1774745443532,-303.734869,0.00014983,7]
[419009230,1774745443542,-204.549778,0.00014983,7]
[419009231,1774745443553,-235.762097,0.00014983,7]
[419009232,1774745443563,-268.0629,0.00014983,7]
[419009233,1774745443574,-4326.57463207,0.00015038,2]
[419009234,1774745443585,-1324.0,0.00015068,2]
[419009235,1774745443594,-342.35,0.00015068,2]
[419009236,1774745443604,-500.0,0.00015273,2]
[419009237,1774745443614,-500.0,0.00015273,2]
[419009238,1774745443623,-500.0,0.00015273,2]
[419009239,1774745443633,-166.66,0.00015277,2]
[419009240,1774745443644,-153.80550818,0.00015289,2]
[419009241,1774745443653,-150.0,0.00015289,2]
[419009242,1774745443663,-500.0,0.00015289,2]
[419009243,1774745443672,-150.0,0.00015289,2]
[419009244,1774745443683,-500.0,0.00015289,2]
[419009245,1774745443694,-150.0,0.00015289,2]
[419009246,1774745443703,-500.0,0.00015289,2]
[419009247,1774745443714,-283.63533377,0.00015289,2]
[419009248,1774745443724,-500.0,0.00015289,2]
[419009249,1774745443734,-500.0,0.00015289,2]
[419009250,1774745443744,-500.0,0.00015289,2]
[419009251,1774745443754,-500.0,0.00015289,2]
[419009253,1774745443765,-150.05356968,0.00015289,2]
[419009254,1774745443774,-158.05207176,0.00015289,2]
[419009255,1774745443785,-500.0,0.00015289,2]
[419009256,1774745443794,-500.0,0.00015289,2]
[419009257,1774745443804,-500.0,0.00015289,2]
[419009258,1774745443813,-500.0,0.00015289,2]
[419009259,1774745443823,-500.0,0.00015289,2]
[419009260,1774745443833,-500.0,0.00015289,2]
[419009261,1774745443843,-500.0,0.00015289,2]
[419009262,1774745443853,-381.94618532,0.00015289,2]
[419009263,1774745443863,-500.0,0.00015289,2]
[419009264,1774745443873,-500.0,0.00015289,2]
[419009265,1774745443884,-500.0,0.00015289,2]
[419009266,1774745443893,-500.0,0.00015289,2]
[419009267,1774745443903,-500.0,0.00015289,2]
[419009268,1774745443913,-500.0,0.00015289,2]
[419009269,1774745443923,-500.0,0.00015289,2]
[419009270,1774745443933,-500.0,0.00015289,2]
[419009271,1774745443943,-500.0,0.00015289,2]
[419009273,1774745443952,-500.0,0.00015289,2]
[419009275,1774745443962,-500.0,0.00015289,2]
[419009277,1774745443971,-500.0,0.00015289,2]
[419009279,1774745443980,-500.0,0.00015289,2]
[419009280,1774745443990,-479.99718921,0.00015289,2]
[419009281,1774745444000,-500.0,0.00015289,2]
[419009282,1774745444010,-500.0,0.00015289,2]
[419009283,1774745444020,-500.0,0.00015289,2]
[419009284,1774745444031,-500.0,0.00015289,2]
[419009285,1774745444040,-500.0,0.00015289,2]
[419009286,1774745444050,-500.0,0.00015289,2]
[419009287,1774745444059,-500.0,0.00015289,2]
[419009288,1774745444068,-500.0,0.00015289,2]
[419009289,1774745444078,-500.0,0.00015289,2]
[419009290,1774745444088,-500.0,0.00015289,2]
[419009291,1774745444097,-500.0,0.00015289,2]
[419009292,1774745444108,-503.28066809,0.00015289,2]
[419009293,1774745444118,-489.0,0.00015289,2]
[419009294,1774745444129,-500.0,0.00015289,2]
[419009295,1774745444139,-500.0,0.00015289,2]
[419009296,1774745444148,-500.0,0.00015289,2]
[419009297,1774745444158,-489.0,0.00015289,2]
[419009298,1774745444169,-500.0,0.00015289,2]
[419009299,1774745444178,-489.0,0.00015289,2]
[419009300,1774745444188,-500.0,0.00015289,2]
[419009301,1774745444197,-500.0,0.00015289,2]
[419009302,1774745444207,-489.0,0.00015289,2]
[419009303,1774745444217,-500.0,0.00015289,2]
[419009304,1774745444227,-500.0,0.00015289,2]
[419009305,1774745444237,-489.0,0.00015289,2]
[419009306,1774745444247,-500.0,0.00015289,2]
[419009307,1774745444258,-577.37301328,0.00015289,2]
[419009308,1774745444267,-489.0,0.00015289,2]
[419009309,1774745444278,-500.0,0.00015289,2]
[419009310,1774745444287,-489.0,0.00015289,2]
[419009311,1774745444297,-500.0,0.00015289,2]
[419009312,1774745444307,-489.0,0.00015289,2]
[419009313,1774745444317,-500.0,0.00015289,2]
[419009314,1774745444326,-489.0,0.00015289,2]
[419009315,1774745444336,-489.0,0.00015289,2]
[419009316,1774745444346,-489.0,0.00015289,2]
[419009317,1774745444355,-500.0,0.00015289,2]
[419009318,1774745444365,-489.0,0.00015289,2]
[419009319,1774745444375,-489.0,0.00015289,2]
[419009320,1774745444385,-489.0,0.00015289,2]
[419009321,1774745444394,-489.0,0.00015289,2]
[419009322,1774745444403,-489.0,0.00015289,2]
[419009323,1774745444413,-500.0,0.00015289,2]
[419009324,1774745444423,-489.0,0.00015289,2]
[419009325,1774745444434,-489.0,0.00015289,2]
[419009326,1774745444444,-455.89445997,0.00015289,2]
[419009327,1774745444455,-489.0,0.00015289,2]
[419009328,1774745444465,-489.0,0.00015289,2]
[419009329,1774745444474,-489.0,0.00015289,2]
[419009330,1774745444484,-489.0,0.00015289,2]
[419009331,1774745444494,-489.0,0.00015289,2]
[419009332,1774745444503,-503.30017584,0.00015289,2]
[419009333,1774745444513,-500.0,0.00015289,2]
[419009334,1774745444523,-500.0,0.00015289,2]
[419009335,1774745444532,-500.0,0.00015289,2]
[419009336,1774745444542,-500.0,0.00015289,2]
[419009337,1774745444552,-329.95993889,0.00015289,2]
[419009338,1774745444562,-500.0,0.00015289,2]
[419009339,1774745444571,-500.0,0.00015289,2]
[419009340,1774745444583,-500.0,0.00015289,2]
[419009341,1774745444593,-150.0,0.00015289,2]
[419009342,1774745444603,-500.0,0.00015289,2]
[419009343,1774745444613,-500.0,0.00015289,2]
[419009344,1774745444623,-500.0,0.00015289,2]
[419009345,1774745444634,-294.91887286,0.00015289,2]
[419009346,1774745444646,-500.0,0.00015289,2]
[419009347,1774745444656,-500.0,0.00015289,2]
[419009348,1774745444667,-500.0,0.00015289,2]
[419009349,1774745444677,-150.0,0.00015289,2]
[419009350,1774745444688,-500.0,0.00015289,2]
[419009351,1774745444698,-500.0,0.00015289,2]
[419009352,1774745444708,-500.0,0.00015289,2]
[419009353,1774745444719,-630.74303783,0.00015289,2]
[419009354,1774745444729,-500.0,0.00015289,2]
[419009355,1774745444739,-500.0,0.00015289,2]
[419009356,1774745444749,-500.0,0.00015289,2]
[419009357,1774745444759,-500.0,0.00015289,2]
[419009358,1774745444769,-211.85433058,0.00015289,2]
[419009359,1774745444779,-500.0,0.00015289,2]
[419009360,1774745444788,-150.0,0.00015289,2]
[419009361,1774745444798,-150.0,0.00015314,2]
[419009362,1774745444807,-299.148323,0.00015316,2]
[419009363,1774745444816,-2000.0,0.00015342,2]
[419009364,1774745444826,-1965.66697892,0.00015342,2]
[419009365,1774745444835,-2080.25367425,0.00015342,2]
[419009366,1774745444845,-2000.0,0.00015342,2]
[419009367,1774745444854,-909.38735598,0.00015371,2]
[419009368,1774745444864,-4326.57463207,0.00015469,2]
[419009369,1774745444873,-4000.0,0.00015507,2]
[419009370,1774745444883,-1600.0,0.00015566,2]
[419009371,1774745444892,-736.0,0.00015567,2]
[419009372,1774745444901,-154.4112148,0.00015642,2]
[419009373,1774745444911,-7500.0,0.000157,5]
[419009374,1774745444921,-1324.0,0.00015753,2]
[419009375,1774745444931,-399.48,0.000158,2]
[419009376,1774745444942,-7500.0,0.000158,5]
[419009377,1774745444952,-2000.0,0.0001589,2]
[419009378,1774745444962,-389.39669243,0.0001589,2]
[419009379,1774745444972,-2500.0,0.0001589,2]
[419009380,1774745444981,-4000.0,0.00015895,2]
[419009381,1774745444991,-4326.57463207,0.000159,2]
[419009382,1774745445000,-7500.0,0.000159,5]
[419009383,1774745445010,-1219.4477189,0.000159,2]
[419009384,1774745445019,-326.80387007,0.000159,2]
[419009385,1774745445029,-8124.16062253,0.000159,2]
[419009386,1774745445039,-164.84509951,0.000159,2]
[419009387,1774745445049,-3818.32173057,0.0001596,2]
[419009388,1774745445059,-853.24535537,0.0001597,2]
[419009389,1774745445068,-165.06207776,0.00015973,2]
[419009390,1774745445078,-500.0,0.00015973,2]
[419009391,1774745445088,-500.0,0.00015973,2]
[419009392,1774745445097,-151.0,0.00015997,2]
[419009393,1774745445107,-5622.4720598,0.00015997,2]
[419009394,1774745445116,-316508.0169683,0.00015997,2]
[419009395,1774745445126,-611.8933295,0.00015997,2]
[419009396,1774745445136,-53800.0847299,0.00015997,2]
[419009397,1774745445145,-8071.2538685,0.00015997,2]
[419009398,1774745445154,-671.40174411,0.00015999,2]
[419009399,1774745445164,-155.0,0.00015999,2]
[419009400,1774745445173,-749591.97916457,0.00016,2]
[419009401,1774745445191,-1271.86348119,0.00016,2]
[419009402,1774745445217,-108205.98335753,0.00016,2]
[419009403,1774745445262,-989.29856,0.00016,2]
[419009404,1774745445274,-331.98,0.00016,2]
[419009405,1774745445286,-4694.93067227,0.00016,2]
[419009406,1774745445304,-16142.67766905,0.00016,2]
[419009407,1774745445315,-546.0,0.00016,2]
[419009408,1774745445327,-887.00102635,0.00016,2]
[419009409,1774745445669,-697.11500021,0.00014088,2]
[419009410,1774745445679,-12155.24167235,0.00016,2]
[419009416,1774745460199,432.55159713,0.0001,2]
[419009417,1774745517191,456.52,9.684e-05,2]
[419009418,1774745517708,336.16,0.00010651,2]
[419009419,1774745525109,155.0,0.00011138,2]
[419009420,1774745528571,159.0,0.00011138,2]
[419009423,1774745749592,10000.0,0.00017,60]
[419009424,1774745754900,-155.0,0.00011138,3]
[419009425,1774745754928,-157.0,0.00011138,3]
[419009426,1774745754956,-160.0,0.00011138,3]
[419009427,1774745766443,155.0,0.00011138,2]
[419009428,1774745826984,155.0,0.00011138,2]
[419009429,1774745887505,156.0,0.00011138,2]
[419009430,1774745947075,156.0,0.00011138,2]
[419009431,1774746007426,157.0,0.00011138,2]
[419009432,1774746012634,156.0,0.00011138,2]
[419009433,1774746060328,-500.0,0.00011264,2]
[419009434,1774746067567,156.0,0.00011264,2]
[419009436,1774746125787,156.0,0.00011264,2]
[419009437,1774746186892,156.0,0.00011264,2]
[419009439,1774746307813,157.0,0.00011264,2]
[419009440,1774746348727,162.64,0.0001123,2]
[419009441,1774746430458,956.48,0.00011124,2]
[419009442,1774746448727,368.71,0.00010638,2]
[419009443,1774746549448,3477.05854345,0.00011211,2]
[419009445,1774746605776,157.0,0.0001131,2]
[419009446,1774746607984,5040.76145655,9.5e-05,3]
[419009447,1774746608009,7378.76437777,9.5e-05,3]
[419009459,1774746631736,-195.0,0.00011311,2]
[419009460,1774746631746,-195.0,0.00011476,2]
[419009461,1774746631755,-195.0,0.00011476,2]
[419009462,1774746631764,-115.0,0.00011476,2]